[Event "EYCC Girls U16 2021"]
[Site "Tornelo"]
[Date "2021.10.15"]
[Round "1.2"]
[White "Bashylina, Luisa"]
[Black "Mroz, Lena"]
[Result "1/2-1/2"]
[ECO "D31"]
[WhiteElo "2127"]
[BlackElo "1775"]
[Annotator "NA"]
[PlyCount "142"]
[EventDate "2021.10.15"]
[EventType "swiss"]
[EventCountry "NET"]
[SourceTitle "playchess.com"]
[Source "ChessBase"]
[SourceQuality "1"]
[TimeControl "5400+30"]

1. d4 {[%emt 0:00:30]} d5 {[%emt 0:00:53]} 2. c4 {[%emt 0:00:05]} e6 {[%emt 0:00:10]} 3. Nc3 {[%emt 0:00:06]} c6 {[%emt 0:00:10]} 4. e4 {[%emt 0:00:06]} dxe4 {[%emt 0:00:21]} 5. Nxe4 {[%emt 0:00:06]} Bb4+ {[%emt 0:00:15]} 6. Nc3 {[%emt 0:00:09]} c5 {[%emt 0:00:19]} 7. a3 {[%emt 0:00:14]} Ba5 {[%emt 0:00:39]} 8. Nge2 {[%emt 0:00:18]} cxd4 {[%emt 0:03:40]} 9. Qxd4 {[%emt 0:00:23]} Qxd4 {[%emt 0:03:23]} 10. Nxd4 {[%emt 0:00:07]} Bxc3+ {[%emt 0:00:43]} 11. bxc3 {[%emt 0:00:04]} Bd7 {[%emt 0:05:35]} 12. Be2 {[%emt 0:01:28]} Bc6 {[%emt 0:04:57]} 13. O-O {[%emt 0:04:24]} Nf6 {[%emt 0:10:14]} 14. Be3 {[%emt 0:11:48]} O-O {[%emt 0:04:57]} 15. Nb5 {[%emt 0:07:31]} Bxb5 {[%emt 0:05:04]} 16. cxb5 {[%emt 0:00:05]} e5 {[%emt 0:07:07]} 17. Rfd1 {[%emt 0:05:47]} Re8 {[%emt 0:05:57]} 18. c4 {[%emt 0:05:08]} b6 {[%emt 0:11:53]} 19. a4 {[%emt 0:04:10]} Nbd7 {[%emt 0:02:59]} 20. a5 {[%emt 0:01:14]} h6 {[%emt 0:05:17]} 21. h3 {[%emt 0:01:53]} Kf8 {[%emt 0:14:59]} 22. Ra3 {[%emt 0:03:25]} Rab8 {[%emt 0:02:36]} 23. axb6 {[%emt 0:07:51]} axb6 {[%emt 0:00:12]} 24. Ra7 {[%emt 0:00:40]} Re7 {[%emt 0:04:11]} 25. Rd6 {[%emt 0:03:52]} Ke8 {[%emt 0:02:33]} 26. Rc6 {[%emt 0:05:30]} Re6 {[%emt 0:01:24]} 27. Rcc7 {[%emt 0:02:37]} Kd8 {[%emt 0:01:07]} 28. Bg4 {[%emt 0:01:49]} Rd6 {[%emt 0:01:03]} 29. Bf5 {[%emt 0:04:51]} Rc8 {[%emt 0:01:20]} 30. Rxc8+ {[%emt 0:02:00]} Kxc8 {[%emt 0:00:07]} 31. Ra6 {[%emt 0:04:59]} Kb7 {[%emt 0:01:04]} 32. Kf1 {[%emt 0:01:38]} Kc7 {[%emt 0:00:38]} 33. Ke2 {[%emt 0:00:26]} h5 {[%emt 0:00:24]} 34. f4 {[%emt 0:03:17]} e4 {[%emt 0:00:35]} 35. Bxd7 {[%emt 0:02:53]} Nxd7 {[%emt 0:00:07]} 36. f5 {[%emt 0:00:24]} Rf6 {[%emt 0:00:55]} 37. Ra7+ {[%emt 0:01:33]} Kc8 {[%emt 0:00:21]} 38. g4 {[%emt 0:01:09]} hxg4 {[%emt 0:00:07]} 39. hxg4 {[%emt 0:00:02]} g6 {[%emt 0:00:17]} 40. Bg5 {[%emt 0:01:12]} Rd6 {[%emt 0:00:19]} 41. Ke3 {[%emt 0:01:27]} f6 {[%emt 0:01:05]} 42. Bf4 {[%emt 0:00:16]} Rd3+ {[%emt 0:00:09]} 43. Ke2 {[%emt 0:00:51]} g5 {[%emt 0:00:25]} 44. Be3 {[%emt 0:01:32]} Rc3 {[%emt 0:00:45]} 45. Ra4 {[%emt 0:01:09]} Kb7 {[%emt 0:00:47]} 46. Rb4 {[%emt 0:03:39]} Ne5 {[%emt 0:00:27]} 47. c5 {[%emt 0:00:44]} bxc5 {[%emt 0:00:18]} 48. Rxe4 {[%emt 0:00:08]} Nd7 {[%emt 0:01:08]} 49. Re7 {[%emt 0:01:59]} Kc8 {[%emt 0:00:09]} 50. Re6 {[%emt 0:00:42]} Rb3 {[%emt 0:00:26]} 51. Bxc5 {[%emt 0:01:24]} Nxc5 {[%emt 0:00:17]} 52. Rc6+ {[%emt 0:00:05]} Kb7 {[%emt 0:01:04]} 53. Rxc5 {[%emt 0:00:04]} Rb4 {[%emt 0:00:27]} 54. Kf3 {[%emt 0:00:52]} Rf4+ {[%emt 0:00:13]} 55. Kg3 {[%emt 0:00:24]} Rb4 {[%emt 0:00:06]} 56. Rc6 {[%emt 0:01:05]} Rb3+ {[%emt 0:00:11]} 57. Kf2 {[%emt 0:00:18]} Rb4 {[%emt 0:00:49]} 58. Kf3 {[%emt 0:01:06]} Rb3+ {[%emt 0:00:50]} 59. Ke4 {[%emt 0:01:14]} Rb4+ {[%emt 0:00:07]} 60. Kd3 {[%emt 0:00:37]} Rxg4 {[%emt 0:00:12]} 61. Rxf6 {[%emt 0:00:06]} Rf4 {[%emt 0:00:40]} 62. Ke3 {[%emt 0:00:32]} Kc7 {[%emt 0:00:53]} 63. Rc6+ {[%emt 0:01:18]} Kd7 {[%emt 0:00:46]} 64. f6 {[%emt 0:02:42]} Rf5 {[%emt 0:00:18]} 65. Rb6 {[%emt 0:01:14]} Kc7 {[%emt 0:00:46]} 66. Ra6 {[%emt 0:00:22]} Rxb5 {[%emt 0:00:43]} 67. f7 {[%emt 0:00:15]} Rb8 {[%emt 0:00:11]} 68. Kf3 {[%emt 0:01:41]} Rf8 {[%emt 0:00:16]} 69. Kg4 {[%emt 0:00:04]} Kd7 {[%emt 0:00:10]} 70. Ra7+ {[%emt 0:01:15]} Ke6 {[%emt 0:00:18]} 71. Kxg5 {[%emt 0:00:12]} Rxf7 {[%emt 0:00:17]} 1/2-1/2

[Event "EYCC Girls U16 2021"]
[Site "Tornelo"]
[Date "2021.10.15"]
[Round "1.3"]
[White "Kara, Gulce Nehir"]
[Black "Lomaia, Diana"]
[Result "1-0"]
[ECO "B47"]
[WhiteElo "1766"]
[BlackElo "2111"]
[Annotator "NA"]
[PlyCount "105"]
[EventDate "2021.10.15"]
[EventType "swiss"]
[EventCountry "NET"]
[SourceTitle "playchess.com"]
[Source "ChessBase"]
[SourceQuality "1"]
[TimeControl "5400+30"]

1. e4 {[%emt 0:00:30]} c5 {[%emt 0:00:36]} 2. Nf3 {[%emt 0:00:06]} e6 {[%emt 0:00:06]} 3. d4 {[%emt 0:00:15]} cxd4 {[%emt 0:00:04]} 4. Nxd4 {[%emt 0:00:03]} Nc6 {[%emt 0:00:09]} 5. Nc3 {[%emt 0:00:08]} Qc7 {[%emt 0:00:10]} 6. Qd3 {[%emt 0:00:09]} Nf6 {[%emt 0:07:24]} 7. Ndb5 {[%emt 0:02:13]} Qb8 {[%emt 0:00:26]} 8. Qg3 {[%emt 0:01:57]} d6 {[%emt 0:00:52]} 9. Be3 {[%emt 0:03:28]} h6 {[%emt 0:37:37]} 10. O-O-O {[%emt 0:10:08]} Ne5 {[%emt 0:01:11]} 11. f4 {[%emt 0:08:42]} Neg4 {[%emt 0:06:32]} 12. e5 {[%emt 0:20:01]} dxe5 {[%emt 0:06:18]} 13. Bxa7 {[%emt 0:06:23]} Rxa7 {[%emt 0:01:15]} 14. Nxa7 {[%emt 0:00:05]} Qxa7 {[%emt 0:01:35]} 15. Bb5+ {[%emt 0:01:09]} Bd7 {[%emt 0:03:36]} 16. Bxd7+ {[%emt 0:08:30]} Nxd7 {[%emt 0:00:09]} 17. Qxg4 {[%emt 0:00:15]} Qe3+ {[%emt 0:01:21]} 18. Kb1 {[%emt 0:00:09]} Nf6 {[%emt 0:04:06]} 19. Qe2 {[%emt 0:05:36]} Qxe2 {[%emt 0:00:42]} 20. Nxe2 {[%emt 0:00:04]} exf4 {[%emt 0:00:19]} 21. Nxf4 {[%emt 0:00:05]} Bc5 {[%emt 0:00:59]} 22. Rhe1 {[%emt 0:00:41]} O-O {[%emt 0:02:10]} 23. Re5 {[%emt 0:02:36]} b6 {[%emt 0:05:26]} 24. h3 {[%emt 0:04:02]} g5 {[%emt 0:02:55]} 25. Nd3 {[%emt 0:11:08]} Bd4 {[%emt 0:00:31]} 26. Rb5 {[%emt 0:04:33]} Nd5 {[%emt 0:00:15]} 27. Re1 {[%emt 0:02:29]} Rd8 {[%emt 0:02:41]} 28. Nb4 {[%emt 0:01:21]} Bf2 {[%emt 0:04:39]} 29. Rh1 {[%emt 0:00:13]} Nf4 {[%emt 0:02:25]} 30. Nd3 {[%emt 0:01:06]} Nxd3 {[%emt 0:00:47]} 31. Rd1 {[%emt 0:00:08]} Kg7 {[%emt 0:03:04]} 32. Rxd3 {[%emt 0:00:16]} Rc8 {[%emt 0:00:14]} 33. b4 {[%emt 0:01:13]} f6 {[%emt 0:01:33]} 34. Rd2 {[%emt 0:02:21]} Bg1 {[%emt 0:00:23]} 35. Rd1 {[%emt 0:02:36]} Bf2 {[%emt 0:00:09]} 36. Rd2 {[%emt 0:00:36]} Bg1 {[%emt 0:00:02]} 37. a4 {[%emt 0:01:39]} e5 {[%emt 0:00:20]} 38. a5 {[%emt 0:00:31]} bxa5 {[%emt 0:00:03]} 39. bxa5 {[%emt 0:00:20]} Ra8 {[%emt 0:01:38]} 40. c4 {[%emt 0:00:17]} e4 {[%emt 0:01:23]} 41. Re2 {[%emt 0:00:17]} Re8 {[%emt 0:00:43]} 42. a6 {[%emt 0:01:14]} Kg6 {[%emt 0:00:41]} 43. g4 {[%emt 0:00:20]} Bd4 {[%emt 0:00:44]} 44. Kc2 {[%emt 0:00:42]} h5 {[%emt 0:01:34]} 45. c5 {[%emt 0:01:22]} hxg4 {[%emt 0:00:06]} 46. hxg4 {[%emt 0:00:03]} f5 {[%emt 0:01:17]} 47. Rb6+ {[%emt 0:00:14]} Kg7 {[%emt 0:00:14]} 48. gxf5 {[%emt 0:00:08]} Bxc5 {[%emt 0:00:20]} 49. Re6 {[%emt 0:00:47]} Rf8 {[%emt 0:01:46]} 50. Rg6+ {[%emt 0:00:31]} Kf7 {[%emt 0:00:05]} 51. Rxe4 {[%emt 0:00:07]} Be7 {[%emt 0:00:57]} 52. Rc6 {[%emt 0:00:36]} Bf6 {[%emt 0:00:52]} 53. Ree6 {[%emt 0:00:23]} 1-0

[Event "EYCC Girls U16 2021"]
[Site "Tornelo"]
[Date "2021.10.15"]
[Round "1.4"]
[White "Kanyamarala, Trisha"]
[Black "Lindstad, Livia"]
[Result "1-0"]
[ECO "D13"]
[WhiteElo "2082"]
[BlackElo "1742"]
[Annotator "ChessBase"]
[PlyCount "67"]
[EventDate "2021.10.15"]
[EventType "swiss"]
[EventCountry "NET"]
[SourceTitle "playchess.com"]
[Source "ChessBase"]
[SourceQuality "1"]
[TimeControl "5400+30"]

1. d4 {[%emt 0:00:30]} d5 {[%emt 0:00:41]} 2. c4 {[%emt 0:00:12]} c6 {[%emt 0:00:11]} 3. cxd5 {[%emt 0:00:22]} cxd5 {[%emt 0:00:10]} 4. Nc3 {[%emt 0:00:38]} Nc6 {[%emt 0:00:38]} 5. Nf3 {[%emt 0:00:33]} Nf6 {[%emt 0:00:39]} 6. Bf4 {[%emt 0:00:33]} a6 {[%emt 0:01:36]} 7. Ne5 {[%emt 0:00:51]} Qb6 {[%emt 0:01:57]} 8. Nxc6 {[%emt 0:03:10]} bxc6 {[%emt 0:00:49]} 9. Qd2 {[%emt 0:02:38]} Bf5 {[%emt 0:01:48]} 10. f3 {[%emt 0:03:49]} h5 {[%emt 0:01:58]} 11. Na4 {[%emt 0:02:35]} Qa7 {[%emt 0:01:54]} 12. Rc1 {[%emt 0:01:40]} Bd7 {[%emt 0:01:31]} 13. Nc5 {[%emt 0:22:31]} Rc8 {[%emt 0:02:22]} 14. Qa5 {[%emt 0:01:32]} e6 {[%emt 0:02:02]} 15. e3 {[%emt 0:09:09]} Bxc5 {[%emt 0:01:31]} 16. Rxc5 {[%emt 0:00:44]} Ra8 {[%emt 0:00:21]} 17. Bd6 {[%emt 0:01:51]} Qb7 {[%emt 0:02:03]} 18. Rc2 {[%emt 0:02:22]} Ng8 {[%emt 0:03:26]} 19. Ba3 {[%emt 0:02:03]} f6 {[%emt 0:01:59]} 20. Qc5 {[%emt 0:04:27]} Kf7 {[%emt 0:01:58]} 21. Rc3 {[%emt 0:02:24]} a5 {[%emt 0:06:05]} 22. Rb3 {[%emt 0:01:28]} Qc7 {[%emt 0:01:26]} 23. Bd3 {[%emt 0:02:12]} a4 {[%emt 0:02:33]} 24. Rb6 {[%emt 0:01:33]} h4 {[%emt 0:02:43]} 25. O-O {[%emt 0:02:24]} h3 {[%emt 0:00:32]} 26. g3 {[%emt 0:00:25]} Rh5 {[%emt 0:02:13]} 27. Rc1 {[%emt 0:02:41]} f5 {[%emt 0:06:00]} 28. Qb4 {[%emt 0:06:04]} Rg5 {[%emt 0:02:39]} 29. f4 {[%emt 0:01:07]} Rg6 {[%emt 0:01:43]} 30. Rb7 {[%emt 0:01:36]} Qd8 {[%emt 0:03:04]} 31. Rxc6 {[%emt 0:02:03]} Rc8 {[%emt 0:02:30]} 32. Qd6 {[%emt 0:01:48]} Rxc6 {[%emt 0:04:35]} 33. Rxd7+ {[%emt 0:00:33]} Kf6 {[%emt 0:04:09]} 34. Qe5# {[%emt 0:00:16]} 1-0

[Event "EYCC Girls U16 2021"]
[Site "Tornelo"]
[Date "2021.10.15"]
[Round "1.5"]
[White "Volovich, Julia"]
[Black "Allahverdiyeva, Ayan"]
[Result "1/2-1/2"]
[ECO "E97"]
[WhiteElo "1742"]
[BlackElo "2051"]
[Annotator "ChessBase"]
[PlyCount "86"]
[EventDate "2021.10.15"]
[EventType "swiss"]
[EventCountry "NET"]
[SourceTitle "playchess.com"]
[Source "ChessBase"]
[SourceQuality "1"]
[TimeControl "5400+30"]

1. d4 {[%emt 0:00:30]} Nf6 {[%emt 0:00:45]} 2. c4 {[%emt 0:00:05]} g6 {[%emt 0:00:04]} 3. Nc3 {[%emt 0:00:04]} Bg7 {[%emt 0:00:02]} 4. e4 {[%emt 0:00:03]} O-O {[%emt 0:00:02]} 5. Nf3 {[%emt 0:00:04]} d6 {[%emt 0:00:03]} 6. Be2 {[%emt 0:00:04]} e5 {[%emt 0:00:04]} 7. O-O {[%emt 0:00:05]} Nc6 {[%emt 0:00:04]} 8. dxe5 {[%emt 0:00:04]} dxe5 {[%emt 0:04:39]} 9. Qxd8 {[%emt 0:00:15]} Rxd8 {[%emt 0:00:19]} 10. Bg5 {[%emt 0:00:07]} Re8 {[%emt 0:00:12]} 11. Nd5 {[%emt 0:00:16]} Nxd5 {[%emt 0:07:03]} 12. cxd5 {[%emt 0:00:06]} Nb8 {[%emt 0:01:44]} 13. Rac1 {[%emt 0:04:01]} c6 {[%emt 0:00:03]} 14. Bc4 {[%emt 0:06:30]} Bf8 {[%emt 0:08:48]} 15. Rfd1 {[%emt 0:04:23]} Kg7 {[%emt 0:00:04]} 16. dxc6 {[%emt 0:11:40]} Nxc6 {[%emt 0:05:50]} 17. Bb5 {[%emt 0:08:10]} Be6 {[%emt 0:03:44]} 18. Bxc6 {[%emt 0:03:16]} bxc6 {[%emt 0:00:03]} 19. Rxc6 {[%emt 0:01:58]} h6 {[%emt 0:04:07]} 20. Be3 {[%emt 0:01:31]} Bxa2 {[%emt 0:01:08]} 21. Ra1 {[%emt 0:14:20]} Bb3 {[%emt 0:04:59]} 22. Ra5 {[%emt 0:06:24]} Bb4 {[%emt 0:02:45]} 23. Rxe5 {[%emt 0:01:45]} Red8 {[%emt 0:01:08]} 24. g3 {[%emt 0:03:30]} a6 {[%emt 0:06:28]} 25. Nd4 {[%emt 0:05:39]} Ba2 {[%emt 0:04:04]} 26. b3 {[%emt 0:03:15]} Bb1 {[%emt 0:00:13]} 27. Rc1 {[%emt 0:04:18]} Bd6 {[%emt 0:03:35]} 28. Rxb1 {[%emt 0:04:39]} Bxe5 {[%emt 0:00:03]} 29. Nc6 {[%emt 0:00:06]} Re8 {[%emt 0:00:02]} 30. Nxe5 {[%emt 0:00:16]} Rxe5 {[%emt 0:00:03]} 31. Bd4 {[%emt 0:00:10]} f6 {[%emt 0:00:02]} 32. Bxe5 {[%emt 0:00:12]} fxe5 {[%emt 0:00:01]} 33. Ra1 {[%emt 0:03:16]} Rb8 {[%emt 0:00:05]} 34. Rxa6 {[%emt 0:00:46]} Rxb3 {[%emt 0:00:19]} 35. Kg2 {[%emt 0:01:23]} Rb4 {[%emt 0:06:06]} 36. f3 {[%emt 0:03:42]} Rb2+ {[%emt 0:00:38]} 37. Kh3 {[%emt 0:00:38]} Rf2 {[%emt 0:00:36]} 38. Kg4 {[%emt 0:01:16]} Rxh2 {[%emt 0:01:01]} 39. Ra7+ {[%emt 0:02:07]} Kf6 {[%emt 0:00:05]} 40. Ra6+ {[%emt 0:00:02]} Kf7 {[%emt 0:00:01]} 41. Ra7+ {[%emt 0:00:04]} Kf6 {[%emt 0:00:01]} 42. Ra6+ {[%emt 0:00:04]} Kf7 {[%emt 0:00:02]} 43. Ra7+ {[%emt 0:00:03]} Kf6 {[%emt 0:00:01]} 1/2-1/2

[Event "EYCC Girls U16 2021"]
[Site "Tornelo"]
[Date "2021.10.15"]
[Round "1.6"]
[White "Hakobyan, Astghik"]
[Black "Hertlein, Irena"]
[Result "0-1"]
[ECO "B48"]
[WhiteElo "2017"]
[BlackElo "1741"]
[Annotator "NA"]
[PlyCount "116"]
[EventDate "2021.10.15"]
[EventType "swiss"]
[EventCountry "NET"]
[SourceTitle "playchess.com"]
[Source "ChessBase"]
[SourceQuality "1"]
[TimeControl "5400+30"]

1. e4 {[%emt 0:00:30]} c5 {[%emt 0:00:47]} 2. Nf3 {[%emt 0:00:04]} e6 {[%emt 0:00:04]} 3. d4 {[%emt 0:00:37]} cxd4 {[%emt 0:00:06]} 4. Nxd4 {[%emt 0:00:02]} Nc6 {[%emt 0:00:06]} 5. Nc3 {[%emt 0:00:26]} Qc7 {[%emt 0:00:12]} 6. Be3 {[%emt 0:00:48]} a6 {[%emt 0:00:07]} 7. Be2 {[%emt 0:00:42]} Nf6 {[%emt 0:00:11]} 8. a3 {[%emt 0:03:54]} Be7 {[%emt 0:00:25]} 9. O-O {[%emt 0:00:04]} O-O {[%emt 0:00:31]} 10. f4 {[%emt 0:05:12]} d6 {[%emt 0:00:35]} 11. Kh1 {[%emt 0:01:03]} Nxd4 {[%emt 0:02:32]} 12. Bxd4 {[%emt 0:02:16]} e5 {[%emt 0:04:38]} 13. Be3 $11 {[%emt 0:05:26]} exf4 {[%emt 0:02:23]} 14. Bxf4 {[%emt 0:00:18]} Be6 {[%emt 0:01:21]} 15. Qe1 {[%emt 0:06:42]} Qc5 {[%emt 0:09:07]} 16. Bf3 {[%emt 0:16:38]} Rac8 {[%emt 0:10:20]} 17. Rd1 {[%emt 0:01:46]} Rfd8 {[%emt 0:05:07]} 18. Be3 {[%emt 0:05:09]} Qc7 {[%emt 0:09:08]} 19. Qg3 {[%emt 0:02:25]} Nd7 {[%emt 0:02:00]} 20. Bg4 {[%emt 0:05:52]} Ne5 {[%emt 0:10:55]} 21. Nd5 {[%emt 0:05:25]} Bxd5 {[%emt 0:02:32]} 22. exd5 {[%emt 0:00:03]} Nxg4 {[%emt 0:02:12]} 23. Qxg4 {[%emt 0:00:04]} Qxc2 {[%emt 0:04:36]} 24. Rc1 {[%emt 0:09:22]} Qd3 {[%emt 0:00:52]} 25. Bd4 {[%emt 0:00:27]} Bf8 {[%emt 0:01:27]} 26. h4 {[%emt 0:05:08]} Rxc1 {[%emt 0:05:55]} 27. Rxc1 {[%emt 0:00:08]} Re8 {[%emt 0:00:10]} 28. Rd1 {[%emt 0:02:49]} Qe2 {[%emt 0:10:51]} 29. Qxe2 {[%emt 0:00:10]} Rxe2 {[%emt 0:00:04]} 30. Kg1 {[%emt 0:00:38]} h5 {[%emt 0:04:15]} 31. Kf1 {[%emt 0:00:22]} Rc2 {[%emt 0:00:03]} 32. Bc3 {[%emt 0:03:20]} Be7 {[%emt 0:02:24]} 33. Re1 {[%emt 0:04:33]} Kf8 {[%emt 0:03:51]} 34. Bxg7+ {[%emt 0:01:31]} Kxg7 {[%emt 0:00:03]} 35. Rxe7 {[%emt 0:00:03]} Rxb2 {[%emt 0:00:02]} 36. Rd7 {[%emt 0:00:04]} Rb6 {[%emt 0:02:35]} 37. Ke2 {[%emt 0:00:12]} Kf8 {[%emt 0:01:06]} 38. Kf3 {[%emt 0:02:52]} Ke8 {[%emt 0:00:53]} 39. Rc7 {[%emt 0:00:03]} Rb1 {[%emt 0:01:31]} 40. g4 {[%emt 0:02:53]} Kd8 {[%emt 0:00:58]} 41. Rc4 {[%emt 0:01:37]} Rf1+ {[%emt 0:02:12]} 42. Ke2 {[%emt 0:03:03]} Rf6 {[%emt 0:00:39]} 43. gxh5 {[%emt 0:00:48]} Rf5 {[%emt 0:00:46]} 44. Rd4 {[%emt 0:00:44]} Rxh5 {[%emt 0:00:03]} 45. Kf3 {[%emt 0:00:02]} f5 {[%emt 0:00:22]} 46. a4 {[%emt 0:02:18]} b5 {[%emt 0:01:20]} 47. axb5 {[%emt 0:00:25]} axb5 {[%emt 0:00:02]} 48. Rb4 {[%emt 0:00:45]} Kc7 {[%emt 0:00:09]} 49. Kg3 {[%emt 0:02:12]} Kb6 {[%emt 0:00:02]} 50. Rb1 {[%emt 0:00:06]} Kc5 {[%emt 0:00:15]} 51. Rd1 {[%emt 0:01:58]} b4 {[%emt 0:00:10]} 52. Rb1 {[%emt 0:00:20]} Kc4 {[%emt 0:01:07]} 53. Kf4 {[%emt 0:00:12]} b3 {[%emt 0:01:19]} 54. Rc1+ {[%emt 0:00:17]} Kd3 {[%emt 0:00:05]} 55. Rc8 {[%emt 0:00:50]} Rxh4+ {[%emt 0:00:13]} 56. Kxf5 {[%emt 0:00:08]} Rb4 {[%emt 0:00:02]} 57. Rc1 {[%emt 0:00:54]} b2 {[%emt 0:00:06]} 58. Rb1 {[%emt 0:00:04]} Kc2 {[%emt 0:00:03]} 0-1

[Event "EYCC Girls U16 2021"]
[Site "Tornelo"]
[Date "2021.10.15"]
[Round "1.7"]
[White "Russeva, Viktoria"]
[Black "Zvereva, Margarita"]
[Result "0-1"]
[ECO "B22"]
[WhiteElo "1713"]
[BlackElo "2013"]
[Annotator "NA"]
[PlyCount "110"]
[EventDate "2021.10.15"]
[EventType "swiss"]
[EventCountry "NET"]
[SourceTitle "playchess.com"]
[Source "ChessBase"]
[SourceQuality "1"]
[TimeControl "5400+30"]

1. e4 {[%emt 0:00:30]} c5 {[%emt 0:00:34]} 2. c3 {[%emt 0:00:11]} d5 {[%emt 0:00:06]} 3. exd5 {[%emt 0:00:06]} Qxd5 {[%emt 0:00:04]} 4. d4 {[%emt 0:00:10]} Nf6 {[%emt 0:00:14]} 5. Nf3 {[%emt 0:00:24]} Bg4 {[%emt 0:00:22]} 6. Be2 {[%emt 0:00:49]} e6 {[%emt 0:00:48]} 7. Na3 {[%emt 0:00:40]} a6 {[%emt 0:02:44]} 8. Nc2 {[%emt 0:01:34]} cxd4 {[%emt 0:07:12]} 9. Ncxd4 {[%emt 0:05:08]} Bc5 {[%emt 0:07:49]} 10. O-O {[%emt 0:05:03]} O-O {[%emt 0:00:37]} 11. Qc2 {[%emt 0:17:45]} e5 {[%emt 0:08:55]} 12. Nb3 {[%emt 0:01:53]} e4 {[%emt 0:01:28]} 13. Nfd4 {[%emt 0:02:36]} Bxe2 {[%emt 0:01:16]} 14. Qxe2 {[%emt 0:03:02]} Bb6 {[%emt 0:05:04]} 15. Bf4 {[%emt 0:10:41]} Nc6 {[%emt 0:01:59]} 16. Nxc6 {[%emt 0:03:32]} Qxc6 {[%emt 0:00:22]} 17. Rad1 {[%emt 0:04:05]} Rad8 {[%emt 0:01:28]} 18. Bg5 {[%emt 0:06:17]} h6 {[%emt 0:01:17]} 19. Be3 {[%emt 0:02:57]} Nd5 {[%emt 0:03:57]} 20. Bxb6 {[%emt 0:02:25]} Nxb6 {[%emt 0:00:07]} 21. Nd4 {[%emt 0:01:25]} Qg6 {[%emt 0:00:42]} 22. f3 {[%emt 0:03:11]} Rfe8 {[%emt 0:03:50]} 23. fxe4 {[%emt 0:02:26]} Rxe4 {[%emt 0:00:33]} 24. Qf3 {[%emt 0:05:59]} Rde8 {[%emt 0:02:39]} 25. Nf5 {[%emt 0:03:34]} Nc4 {[%emt 0:05:52]} 26. b3 {[%emt 0:05:30]} Ne3 {[%emt 0:01:50]} 27. Nxe3 {[%emt 0:04:14]} Rxe3 {[%emt 0:00:05]} 28. Qxb7 {[%emt 0:00:38]} Rxc3 {[%emt 0:03:26]} 29. Rd6 {[%emt 0:03:58]} Qxd6 {[%emt 0:06:53]} 30. Qxf7+ {[%emt 0:00:14]} Kh7 {[%emt 0:00:05]} 31. Qxe8 {[%emt 0:00:12]} Qd4+ {[%emt 0:03:40]} 32. Kh1 {[%emt 0:00:06]} Rc2 {[%emt 0:01:48]} 33. a4 {[%emt 0:02:07]} Qd5 {[%emt 0:04:03]} 34. Rg1 {[%emt 0:01:15]} Rb2 {[%emt 0:13:32]} 35. Qc8 {[%emt 0:01:14]} a5 {[%emt 0:01:55]} 36. h3 {[%emt 0:01:33]} Rxb3 {[%emt 0:01:02]} 37. Qc2+ {[%emt 0:00:16]} Qd3 {[%emt 0:00:22]} 38. Qxd3+ {[%emt 0:00:56]} Rxd3 {[%emt 0:00:04]} 39. Rc1 {[%emt 0:00:30]} Rd4 {[%emt 0:00:11]} 40. Ra1 {[%emt 0:00:07]} Kg6 {[%emt 0:02:13]} 41. Kg1 {[%emt 0:00:14]} Kf5 {[%emt 0:02:39]} 42. Kf2 {[%emt 0:00:06]} Ke4 {[%emt 0:00:53]} 43. Ke2 {[%emt 0:00:14]} Rb4 {[%emt 0:00:53]} 44. Ra2 {[%emt 0:00:42]} Kd4 {[%emt 0:01:00]} 45. Rd2+ {[%emt 0:01:17]} Kc3 {[%emt 0:02:28]} 46. Rd7 {[%emt 0:00:14]} Rxa4 {[%emt 0:03:08]} 47. Rxg7 {[%emt 0:00:05]} Rb4 {[%emt 0:00:07]} 48. Rc7+ {[%emt 0:01:36]} Kb2 {[%emt 0:00:22]} 49. g4 {[%emt 0:00:26]} a4 {[%emt 0:00:11]} 50. Kf3 {[%emt 0:00:18]} a3 {[%emt 0:00:20]} 51. Re7 {[%emt 0:00:39]} a2 {[%emt 0:00:15]} 52. Re2+ {[%emt 0:00:27]} Ka3 {[%emt 0:00:09]} 53. Rxa2+ {[%emt 0:00:18]} Kxa2 {[%emt 0:00:03]} 54. h4 {[%emt 0:00:04]} Kb3 {[%emt 0:00:16]} 55. g5 {[%emt 0:00:03]} Rxh4 {[%emt 0:00:52]} 0-1

[Event "EYCC Girls U16 2021"]
[Site "Tornelo"]
[Date "2021.10.15"]
[Round "1.8"]
[White "Pipiras, Filipa Fortuna"]
[Black "Mihaljevic, Eva"]
[Result "1-0"]
[ECO "A40"]
[WhiteElo "1995"]
[BlackElo "1708"]
[Annotator "NA"]
[PlyCount "61"]
[EventDate "2021.10.15"]
[EventType "swiss"]
[EventCountry "NET"]
[SourceTitle "playchess.com"]
[Source "ChessBase"]
[SourceQuality "1"]
[TimeControl "5400+30"]

1. d4 {[%emt 0:00:30]} e6 {[%emt 0:00:43]} 2. c4 {[%emt 0:00:30]} b6 {[%emt 0:00:30]} 3. e4 {[%emt 0:01:16]} Bb7 {[%emt 0:00:14]} 4. Nc3 {[%emt 0:00:22]} Bb4 {[%emt 0:00:27]} 5. Qc2 {[%emt 0:01:03]} Qh4 {[%emt 0:06:10]} 6. Bd3 {[%emt 0:03:03]} f5 {[%emt 0:02:30]} 7. Nf3 {[%emt 0:01:48]} Qg4 {[%emt 0:04:06]} 8. O-O {[%emt 0:02:13]} Nf6 {[%emt 0:11:15]} 9. h3 {[%emt 0:10:39]} Qh5 {[%emt 0:00:51]} 10. Nd2 {[%emt 0:09:10]} Bxc3 {[%emt 0:20:12]} 11. bxc3 {[%emt 0:02:57]} fxe4 {[%emt 0:01:07]} 12. Nxe4 {[%emt 0:01:34]} Nc6 {[%emt 0:00:40]} 13. Bf4 {[%emt 0:10:08]} O-O-O {[%emt 0:03:41]} 14. c5 {[%emt 0:21:38]} Rdf8 {[%emt 0:14:05]} 15. Bd2 {[%emt 0:04:20]} Rhg8 {[%emt 0:10:05]} 16. cxb6 {[%emt 0:06:00]} axb6 {[%emt 0:00:23]} 17. Rab1 {[%emt 0:02:22]} g5 {[%emt 0:07:16]} 18. f3 {[%emt 0:05:27]} Nd5 {[%emt 0:02:20]} 19. Nf2 {[%emt 0:01:35]} Rg7 {[%emt 0:02:26]} 20. Rfe1 {[%emt 0:03:44]} Qf7 {[%emt 0:02:03]} 21. Qb2 {[%emt 0:01:38]} Nf4 {[%emt 0:00:41]} 22. Bf1 {[%emt 0:00:27]} Ne7 {[%emt 0:04:00]} 23. Ne4 {[%emt 0:03:25]} h5 {[%emt 0:02:00]} 24. Nd6+ {[%emt 0:02:32]} cxd6 {[%emt 0:01:00]} 25. Bxf4 {[%emt 0:00:10]} Qxf4 {[%emt 0:01:49]} 26. Qxb6 {[%emt 0:00:15]} Nc6 {[%emt 0:01:03]} 27. Qxb7+ {[%emt 0:00:37]} Kd8 {[%emt 0:00:06]} 28. Bb5 {[%emt 0:00:27]} Ke8 {[%emt 0:01:30]} 29. Bxc6 {[%emt 0:00:18]} Qf6 {[%emt 0:00:32]} 30. Qc8+ {[%emt 0:00:15]} Ke7 {[%emt 0:01:04]} 31. Qxd7# {[%emt 0:00:07]} 1-0